bitfinex-derivatives/quotes_BTCF0:USTF0_20251111
["timestamp","ask_amount","ask_price","bid_price","bid_amount"]
[1762841219866,0.38488803,105180.0,105170.0,0.7499514]
[1762841220066,0.47999693,105180.0,105170.0,0.7499514]
[1762841220361,0.50150693,105180.0,105170.0,0.7499514]
[1762841220548,0.00014245,105190.0,105170.0,0.8450694]
[1762841220753,0.38508048,105190.0,105180.0,0.16414521]
[1762841220955,0.51567038,105190.0,105180.0,0.10613521]
[1762841221156,0.1533389,105180.0,105170.0,0.231038]
[1762841221351,0.36274,105180.0,105170.0,0.494308]
[1762841221554,0.13977235,105190.0,105180.0,0.05801]
[1762841221758,0.40687048,105190.0,105180.0,0.41414521]
[1762841221957,0.51374038,105190.0,105180.0,0.29283824]
[1762841222162,0.51374038,105190.0,105180.0,0.18670303]
[1762841222463,0.51374038,105190.0,105180.0,0.14196303]
[1762841222864,0.1533389,105180.0,105170.0,0.207698]
[1762841223065,0.45553693,105180.0,105170.0,0.207698]
[1762841223656,0.45553693,105180.0,105170.0,0.183298]
[1762841223857,0.153348,105170.0,105160.0,1.1572566]
[1762841224062,0.47554603,105170.0,105160.0,0.11924139]
[1762841224250,0.47554603,105170.0,105160.0,0.00014245]
[1762841225265,0.47554603,105170.0,105160.0,0.00214245]
[1762841225564,0.47554603,105170.0,105160.0,0.00514245]
[1762841225565,0.47654603,105170.0,105160.0,0.00514245]
[1762841226960,0.47554603,105170.0,105160.0,0.00214245]
[1762841227163,0.47854603,105170.0,105160.0,0.00314245]
[1762841227770,0.47554603,105170.0,105160.0,0.00214245]
[1762841228067,0.47954603,105170.0,105160.0,0.00114245]
[1762841229977,0.47654603,105170.0,105160.0,0.00014245]
[1762841230271,0.48054603,105170.0,105160.0,0.00114245]
[1762841230760,0.47654603,105170.0,105160.0,0.00014245]
[1762841230964,0.47954603,105170.0,105160.0,0.00114245]
[1762841234874,0.58568124,105170.0,105160.0,0.00114245]
[1762841235272,0.58568124,105170.0,105130.0,0.11919816]
[1762841235273,0.1533751,105140.0,105130.0,0.11919816]
[1762841235571,0.58170834,105140.0,105130.0,9.922e-05]
[1762841235973,0.1520942,105130.0,105120.0,0.01209582]
[1762841236179,0.1533932,105120.0,105110.0,0.3452628]
[1762841236480,0.51559123,105120.0,105110.0,0.14338218]
[1762841236983,0.51569045,105120.0,105110.0,0.14338218]
[1762841237168,0.51569045,105120.0,105110.0,0.16578218]
[1762841237476,0.51669045,105120.0,105110.0,0.182193]
[1762841237670,0.51669045,105120.0,105110.0,0.28832821]
[1762841237871,0.51669045,105120.0,105110.0,0.159793]
[1762841238072,0.51669045,105120.0,105110.0,0.28832821]
[1762841238374,0.1025913,105100.0,105080.0,0.01327]
[1762841238575,0.04672803,105090.0,105080.0,0.05801]
[1762841238876,0.12,105090.0,105080.0,0.88590715]
[1762841239070,0.00014245,105100.0,105090.0,0.1532004]
[1762841239271,0.00014245,105100.0,105090.0,0.53933561]
[1762841239466,0.04435922,105120.0,105110.0,0.05582]
[1762841239673,0.06109922,105120.0,105110.0,0.44195521]
[1762841239868,0.06009922,105120.0,105110.0,0.7657827]
[1762841240067,9.922e-05,105120.0,105110.0,0.6706104]
[1762841240277,9.922e-05,105120.0,105110.0,0.56447519]
[1762841240278,0.04555725,105120.0,105110.0,0.56447519]
[1762841240475,0.26229725,105120.0,105110.0,0.7657827]
[1762841240681,0.26009922,105120.0,105110.0,0.68076435]
[1762841240977,0.00014245,105130.0,105120.0,0.05643]
[1762841241181,0.00234048,105130.0,105120.0,0.52758356]
[1762841241473,0.00234048,105130.0,105120.0,1.60189099]
[1762841241474,0.00014245,105130.0,105120.0,1.60189099]
[1762841241665,0.30014245,105130.0,105120.0,1.69702489]
[1762841242177,0.30234048,105130.0,105120.0,1.69702489]
[1762841242377,0.30234048,105130.0,105120.0,1.59088968]
[1762841242571,0.34560048,105130.0,105120.0,1.69702489]
[1762841243081,0.30334048,105130.0,105120.0,1.69702489]
[1762841243283,0.34660048,105130.0,105120.0,1.69702489]
[1762841243578,0.44175468,105130.0,105120.0,1.69702489]
[1762841244174,0.34660048,105130.0,105120.0,1.69702489]
[1762841244583,0.34660048,105130.0,105120.0,1.41702489]
[1762841244875,0.34660048,105130.0,105120.0,0.38968363]
[1762841244876,0.45553468,105130.0,105120.0,0.38968363]
[1762841245177,0.45553468,105130.0,105120.0,0.12753099]
[1762841245478,0.04326,105120.0,105110.0,0.2470062]
[1762841245666,0.40545803,105120.0,105110.0,0.3770062]
[1762841245979,0.40545803,105120.0,105110.0,0.69959892]
[1762841246787,0.40645803,105120.0,105110.0,0.70059892]
[1762841247077,0.40645803,105120.0,105110.0,0.79577122]
[1762841247267,0.40645803,105120.0,105110.0,0.70059892]
[1762841247466,0.025,105110.0,105100.0,0.04924139]
[1762841247787,0.025,105110.0,105070.0,0.22183763]
[1762841247788,0.0951994,105080.0,105070.0,0.04256947]
[1762841247971,0.31219803,105080.0,105070.0,0.14870468]
[1762841248175,0.31219803,105080.0,105070.0,0.3042408]
[1762841248474,0.31219803,105080.0,105070.0,0.6042408]
[1762841248874,0.31219803,105080.0,105070.0,0.65399865]
[1762841249072,0.31319803,105080.0,105070.0,0.35399865]
[1762841249271,0.31319803,105080.0,105070.0,0.19810559]
[1762841249472,0.31319803,105080.0,105070.0,0.47399865]
[1762841249773,0.40839743,105080.0,105070.0,0.35399865]
[1762841249981,0.40839743,105080.0,105070.0,0.19810559]
[1762841250186,0.41039743,105080.0,105070.0,0.02249947]
[1762841250372,0.41039743,105080.0,105070.0,0.00108947]
[1762841250573,0.41039743,105080.0,105070.0,0.0358231]
[1762841250773,0.31519803,105080.0,105070.0,0.04356947]
[1762841250974,0.41039743,105080.0,105070.0,0.19946253]
[1762841251177,0.41039743,105080.0,105070.0,0.04356947]
[1762841251571,0.56629049,105080.0,105070.0,7e-08]
[1762841251784,0.0952266,105050.0,105040.0,0.00576914]
[1762841251969,0.48809109,105050.0,105040.0,0.01971914]
[1762841252176,0.33219803,105050.0,105040.0,0.37219914]
[1762841252378,0.33219803,105050.0,105040.0,0.32402095]
[1762841252573,0.3322875,105050.0,105040.0,0.35991401]
[1762841252882,0.3332875,105050.0,105040.0,0.20702095]
[1762841253087,0.3332875,105050.0,105040.0,0.50702095]
[1762841253282,0.3332875,105050.0,105040.0,0.06519914]
[1762841253283,0.2232875,105050.0,105040.0,0.06519914]
[1762841253580,0.2232875,105050.0,105040.0,0.56414187]
[1762841253775,0.2232875,105050.0,105040.0,0.46890617]
[1762841253974,0.2232875,105050.0,105040.0,0.20890617]
[1762841254375,0.2232875,105050.0,105040.0,0.21090617]
[1762841255376,0.3185141,105050.0,105040.0,0.21090617]
[1762841255573,0.3185141,105050.0,105040.0,0.04612914]
[1762841256380,0.3185141,105050.0,105040.0,0.02471914]
[1762841256684,0.2232875,105050.0,105040.0,0.19719914]
[1762841257277,0.3185141,105050.0,105040.0,0.06719914]
[1762841257572,0.2232875,105050.0,105040.0,0.33719914]
[1762841257775,0.2232875,105050.0,105040.0,0.36522419]
[1762841257980,0.2232875,105050.0,105040.0,0.66522419]
[1762841259382,0.2232875,105050.0,105040.0,0.48522419]
[1762841259581,0.22108947,105050.0,105040.0,0.63522419]
[1762841259788,0.02,105050.0,105040.0,0.63522419]
[1762841259984,1e-08,105060.0,105050.0,0.04248]
[1762841260184,0.00219804,105060.0,105050.0,0.51837306]
[1762841260380,0.34219804,105060.0,105050.0,0.66060829]
[1762841260781,0.0951972,105090.0,105080.0,0.05643]
[1762841260980,0.43739523,105090.0,105080.0,0.05643]
[1762841261180,0.43739523,105090.0,105080.0,0.01395]
[1762841261379,0.43739523,105090.0,105060.0,0.01395]
[1762841261591,0.59328829,105090.0,105060.0,0.01395]
[1762841261781,0.0952085,105070.0,105060.0,0.20015376]
[1762841261984,0.43740653,105070.0,105060.0,0.20029621]
[1762841262892,0.34219803,105070.0,105060.0,0.33029621]
[1762841263298,0.43740653,105070.0,105060.0,0.20029621]
[1762841264291,0.43840653,105070.0,105060.0,0.20129621]
[1762841264890,0.43840653,105070.0,105060.0,0.05757245]
[1762841266495,0.43840653,105070.0,105060.0,0.17757245]
[1762841266496,0.34319803,105070.0,105060.0,0.17757245]
[1762841267095,0.34319803,105070.0,105060.0,0.35757245]
[1762841267389,0.34319803,105070.0,105060.0,0.18757245]
[1762841268694,0.43840653,105070.0,105060.0,0.18757245]
[1762841268903,0.43840653,105070.0,105060.0,0.01509245]
[1762841269089,0.43840653,105070.0,105060.0,0.05757245]
[1762841269401,0.34319803,105070.0,105060.0,0.32757245]
[1762841269589,0.43840653,105070.0,105060.0,0.16757245]
[1762841269790,0.43840653,105070.0,105060.0,0.05757245]
[1762841270181,0.34319803,105070.0,105060.0,0.17757245]
[1762841270384,0.34319803,105070.0,105060.0,0.31757245]
[1762841270595,0.43840653,105070.0,105060.0,0.17757245]
[1762841270789,0.43840653,105070.0,105060.0,0.35757245]
[1762841270990,0.43840653,105070.0,105060.0,0.05757245]
[1762841274294,0.43840653,105070.0,105060.0,0.03650245]
[1762841276095,0.43840653,105070.0,105060.0,0.05810245]
[1762841277992,0.43840653,105070.0,105060.0,0.01509245]
[1762841278191,0.43840653,105070.0,105060.0,0.05987245]
[1762841278490,0.59429959,105070.0,105060.0,0.01509245]
[1762841278884,0.43840653,105070.0,105060.0,0.05987245]
[1762841280885,0.43840653,105070.0,105060.0,0.65781819]
[1762841281091,0.06319803,105070.0,105060.0,0.89577819]
[1762841281285,0.09840653,105070.0,105060.0,0.20192513]
[1762841281797,0.46840653,105070.0,105060.0,0.48192513]
[1762841282098,0.43486285,105070.0,105060.0,0.48412316]
[1762841284199,0.43486285,105070.0,105060.0,0.20412316]
[1762841284502,0.43486285,105070.0,105060.0,0.34412316]
[1762841285701,0.43486285,105070.0,105060.0,0.20412316]
[1762841286098,0.59075591,105070.0,105060.0,0.01729048]
[1762841286304,0.43486285,105070.0,105060.0,0.06207048]
[1762841288108,0.43486285,105070.0,105060.0,0.01729048]
[1762841288495,0.59075591,105070.0,105060.0,0.01509245]
[1762841288702,0.61542082,105070.0,105060.0,0.00114245]
[1762841289007,0.61542082,105070.0,105060.0,0.01597048]
[1762841290209,0.59075591,105070.0,105060.0,0.01597048]
[1762841290510,0.61540608,105070.0,105060.0,0.01377245]
[1762841291402,0.59075591,105070.0,105060.0,0.01597048]
[1762841291704,0.61537546,105070.0,105060.0,0.01597048]
[1762841291905,0.59075591,105070.0,105060.0,0.03847048]
[1762841292512,0.43486285,105070.0,105060.0,0.06075048]
[1762841293215,0.37073267,105070.0,105060.0,0.44596808]
[1762841293415,0.46594117,105070.0,105060.0,0.06075048]
[1762841293604,0.46594117,105070.0,105060.0,0.34075048]
[1762841293810,0.46594117,105070.0,105060.0,0.06075048]
[1762841294009,0.46594117,105070.0,105060.0,0.19075048]
[1762841294420,0.46594117,105070.0,105060.0,0.32075048]
[1762841294718,0.46594117,105070.0,105060.0,0.06075048]
[1762841294914,0.46594117,105070.0,105050.0,0.08545468]
[1762841295212,0.6666566,105040.0,105010.0,7.475e-05]
[1762841295417,0.15589306,105030.0,105020.0,0.01263]
[1762841295617,0.58187043,105030.0,105020.0,0.01263]
[1762841295814,0.58187043,105030.0,105020.0,0.05741]
[1762841296021,0.42597737,105030.0,105020.0,0.05960803]
[1762841296223,0.42597737,105030.0,105020.0,0.05741]
[1762841296416,0.58187043,105030.0,105020.0,0.05741]
[1762841297020,0.58287043,105030.0,105020.0,0.06041]
[1762841297412,0.58287043,105030.0,105020.0,0.01563]
[1762841297822,0.58287043,105030.0,105020.0,0.01763]
[1762841298614,0.58287043,105030.0,105020.0,0.005]
[1762841298815,0.42697747,105030.0,105020.0,0.06460803]
[1762841299427,0.33173267,105030.0,105020.0,0.58248874]
[1762841299612,0.02173267,105030.0,105020.0,0.58248874]
[1762841299813,0.00014245,105040.0,105030.0,0.1404248]
[1762841300009,0.33014245,105040.0,105030.0,0.45262283]
[1762841300221,0.33014245,105040.0,105030.0,0.59601145]
[1762841300422,0.06087512,105040.0,105030.0,0.59601145]
[1762841301010,0.06014245,105040.0,105030.0,0.59601145]
[1762841301418,0.0952135,105070.0,105030.0,0.98990451]
[1762841301622,0.4052135,105070.0,105060.0,0.05805]
[1762841301822,0.40594617,105070.0,105060.0,0.06024803]
[1762841302023,0.40594617,105070.0,105060.0,0.17024803]
[1762841302220,0.31073267,105070.0,105060.0,0.34024803]
[1762841302421,0.0951978,105090.0,105080.0,0.05805]
[1762841302626,0.56182353,105090.0,105080.0,0.06024803]
[1762841302826,0.40593047,105090.0,105080.0,0.06024803]
[1762841303429,0.56182353,105090.0,105080.0,0.06024803]
[1762841304728,0.56182353,105090.0,105070.0,0.00014245]
[1762841304729,0.0951994,105080.0,105070.0,0.00014245]
[1762841304920,0.57182513,105080.0,105070.0,0.00014245]
[1762841305225,0.57182513,105080.0,105040.0,0.05805]
[1762841305226,0.0952266,105050.0,105040.0,0.05805]
[1762841305427,0.39595927,105050.0,105040.0,0.19024803]
[1762841305629,0.39595927,105050.0,105040.0,0.20377793]
[1762841306818,0.39595927,105050.0,105040.0,0.06024803]
[1762841307322,0.39595927,105050.0,105040.0,0.17962417]
[1762841307925,0.00014245,105060.0,105050.0,0.0448]
[1762841308125,0.00014245,105060.0,105050.0,0.04699803]
[1762841308126,0.44609262,105060.0,105050.0,0.04699803]
[1762841308526,0.0952266,105050.0,105040.0,4e-08]
[1762841308825,0.0952266,105050.0,105020.0,0.18224827]
[1762841308826,0.0952447,105030.0,105020.0,0.05743]
[1762841309124,0.53241572,105030.0,105020.0,0.01263]
[1762841309524,0.0952538,105020.0,105010.0,7.475e-05]
[1762841309722,0.56242482,105020.0,105010.0,0.00227278]
[1762841310424,0.56242482,105020.0,105010.0,0.04707278]
[1762841311023,0.45598647,105020.0,105010.0,0.04807278]
[1762841311618,0.56342482,105020.0,105010.0,0.00427278]
[1762841312722,0.56342482,105020.0,105010.0,0.04907278]
[1762841312723,0.45698647,105020.0,105010.0,0.04907278]
[1762841313122,0.56342482,105020.0,105010.0,0.04907278]
[1762841313525,0.45698647,105020.0,105010.0,0.23907278]
[1762841313729,0.36173267,105020.0,105010.0,0.33433568]
[1762841314224,0.42698647,105020.0,104980.0,0.01325]
[1762841314420,0.20171425,105000.0,104980.0,0.06024803]
[1762841314619,0.00073267,104990.0,104980.0,0.20380526]
[1762841314820,0.39601367,104990.0,104980.0,0.20380526]
[1762841315323,0.39608751,104990.0,104980.0,0.20380526]
[1762841315627,0.50252586,104990.0,104980.0,0.06324803]
[1762841316324,0.39608751,104990.0,104980.0,0.07600523]
[1762841316519,0.50252586,104990.0,104980.0,0.07600523]
[1762841316724,0.50252586,104990.0,104980.0,0.06524803]
[1762841316928,0.50252586,104990.0,104980.0,0.06305]
[1762841317124,0.50352586,104990.0,104980.0,0.03737]
[1762841317432,0.50352586,104990.0,104980.0,0.004]
[1762841317622,0.50352586,104990.0,104980.0,0.00619803]
[1762841318228,0.0952901,104980.0,104970.0,0.01232974]
[1762841318429,0.55246112,104980.0,104970.0,0.00219803]
[1762841318634,0.55246112,104980.0,104970.0,0.04699803]
[1762841319134,0.00407384,104990.0,104970.0,0.68045723]
[1762841319328,0.00407384,104990.0,104980.0,0.05805]
[1762841319329,0.33480651,104990.0,104980.0,0.05805]
[1762841319530,0.33480651,104990.0,104980.0,0.07024803]
[1762841319930,0.32280651,104990.0,104970.0,0.01253162]
[1762841320132,0.0952992,104970.0,104960.0,0.01325]
[1762841320331,0.32073267,104970.0,104960.0,0.06024803]
[1762841320531,0.41603187,104970.0,104960.0,0.06024803]
[1762841320732,0.41603187,104970.0,104960.0,0.07257401]
[1762841320932,0.32073267,104970.0,104960.0,0.09257401]
[1762841321133,0.32073267,104970.0,104960.0,0.46788231]
[1762841321436,0.27273267,104970.0,104960.0,0.48476112]
[1762841322131,0.27273267,104970.0,104960.0,0.58006942]
[1762841322330,0.002,104970.0,104960.0,0.48476112]
[1762841322633,0.51447022,104970.0,104960.0,0.21476112]
[1762841322834,0.51547022,104970.0,104960.0,0.01544803]
[1762841323044,0.40903187,104970.0,104960.0,0.06024803]
[1762841323933,0.40903187,104970.0,104960.0,0.16300377]
[1762841324234,0.31373267,104970.0,104960.0,0.07300377]
[1762841324433,0.40903187,104970.0,104960.0,0.07300377]
[1762841325537,0.51547022,104970.0,104960.0,0.06024803]
[1762841325736,0.51547022,104970.0,104960.0,0.07252023]
[1762841325934,0.40903187,104970.0,104960.0,0.07252023]
[1762841327141,0.40903187,104970.0,104960.0,0.06024803]
[1762841327341,0.51547022,104970.0,104960.0,0.06024803]
[1762841328442,0.40903187,104970.0,104960.0,0.07299161]
[1762841329244,0.31373267,104970.0,104960.0,0.37299161]
[1762841329446,0.40903187,104970.0,104960.0,0.15299161]
[1762841330044,0.40903187,104970.0,104960.0,0.07299161]
[1762841330444,0.31373267,104970.0,104960.0,0.34299161]
[1762841331439,0.51547022,104970.0,104960.0,0.06024803]
[1762841331647,0.0953083,104960.0,104950.0,7.238e-05]
[1762841331845,0.52255407,104960.0,104950.0,0.00227041]
[1762841332851,0.52355407,104960.0,104950.0,0.01468167]
[1762841333460,0.52355407,104960.0,104950.0,0.06071167]
[1762841333461,0.41711572,104960.0,104950.0,0.06071167]
[1762841333762,0.52355407,104960.0,104950.0,0.01468167]
[1762841334252,0.52455407,104960.0,104950.0,0.01468167]
[1762841334852,0.41811572,104960.0,104950.0,0.01468167]
[1762841335054,0.52455407,104960.0,104950.0,0.01468167]
[1762841335451,0.63099242,104960.0,104950.0,7.238e-05]
[1762841335656,0.63099242,104960.0,104950.0,1e-08]
[1762841335859,0.32280742,104960.0,104950.0,0.04654804]
[1762841336158,0.32280742,104960.0,104950.0,0.16654804]
[1762841336354,0.32280742,104960.0,104950.0,0.00219804]
[1762841336558,0.32280742,104960.0,104950.0,1e-08]
[1762841336748,0.52455407,104960.0,104950.0,1e-08]
[1762841337749,0.52455407,104960.0,104950.0,0.00219804]
[1762841337954,0.42924577,104960.0,104950.0,0.00219804]
[1762841338757,0.42924577,104960.0,104950.0,1e-08]
[1762841338953,0.52455407,104960.0,104950.0,1e-08]
[1762841339351,0.42924577,104960.0,104950.0,0.04695804]
[1762841339553,0.32280742,104960.0,104950.0,0.44227534]
[1762841339755,0.32280742,104960.0,104950.0,0.04695804]
[1762841339967,0.32280742,104960.0,104950.0,0.30695804]
[1762841340362,0.32280742,104960.0,104950.0,0.54587052]
[1762841340665,0.32280742,104960.0,104950.0,0.45055322]
[1762841340967,0.32280742,104960.0,104950.0,0.54587052]
[1762841341166,0.32280742,104960.0,104950.0,0.65230887]
[1762841341380,0.02280742,104960.0,104950.0,0.54587052]
[1762841341774,0.32280742,104960.0,104950.0,0.52428052]
[1762841342079,0.32280742,104960.0,104950.0,0.47055322]
[1762841342475,0.03207475,104960.0,104950.0,0.67230887]
[1762841342681,0.03207475,104960.0,104950.0,0.56587052]
[1762841342873,0.26207475,104960.0,104950.0,0.67230887]
[1762841343075,0.18927632,104960.0,104950.0,0.56587052]
[1762841343284,0.07825245,104980.0,104970.0,0.04476]
[1762841343483,0.53542347,104980.0,104970.0,0.32695803]
[1762841343680,0.35087512,104980.0,104970.0,0.32695803]
[1762841344181,0.35094712,104980.0,104970.0,0.32695803]
[1762841345078,0.35394712,104980.0,104970.0,0.32695803]
[1762841345281,0.46338547,104980.0,104970.0,0.04695803]
[1762841345476,0.46338547,104980.0,104970.0,0.18695803]
[1762841345984,0.35694712,104980.0,104970.0,0.18695803]
[1762841346485,0.35694712,104980.0,104970.0,0.04695803]
[1762841346684,0.43505712,104980.0,104970.0,0.04695803]
[1762841347677,0.43505712,104980.0,104970.0,0.17695803]
[1762841348079,0.43505712,104980.0,104970.0,0.31695803]
[1762841348682,0.54149547,104980.0,104970.0,0.16695803]
[1762841349187,0.54149547,104980.0,104970.0,0.04695803]
[1762841349388,0.53034722,104980.0,104970.0,0.00219803]
[1762841349684,0.0952992,104970.0,104960.0,0.01359]
[1762841349886,0.0953083,104960.0,104950.0,1e-08]
[1762841350089,0.54247932,104960.0,104950.0,0.00219804]
[1762841350278,0.34073267,104960.0,104950.0,0.00219804]
[1762841350585,0.54247932,104960.0,104950.0,0.00219804]
[1762841351682,0.44717102,104960.0,104950.0,0.02536804]
[1762841352183,0.44917102,104960.0,104950.0,0.02636804]
[1762841352485,0.44917102,104960.0,104950.0,0.17795804]
[1762841353197,0.34273267,104960.0,104950.0,0.33795804]
[1762841353379,0.44917102,104960.0,104950.0,0.04795804]
[1762841353979,0.44917102,104960.0,104950.0,0.34795804]
[1762841354279,0.44917102,104960.0,104950.0,0.04795804]
[1762841354585,0.44917102,104960.0,104950.0,0.31795804]
[1762841355387,0.44917102,104960.0,104950.0,0.04795804]
[1762841355687,0.34273267,104960.0,104950.0,0.00319804]
[1762841355886,0.44917102,104960.0,104950.0,0.04795804]
[1762841356083,0.34273267,104960.0,104950.0,0.00319804]
[1762841356284,0.44917102,104960.0,104950.0,0.30795804]
[1762841356788,0.44917102,104960.0,104950.0,0.04795804]
[1762841357187,0.43804097,104960.0,104950.0,0.00319804]
[1762841357488,0.54447932,104960.0,104950.0,0.00319804]
[1762841357889,0.44917102,104960.0,104950.0,0.00319804]
[1762841358691,0.34273267,104960.0,104950.0,0.00319804]
[1762841358892,0.44917102,104960.0,104950.0,0.00319804]
[1762841359090,0.44917102,104960.0,104950.0,0.02636804]
[1762841359291,0.44917102,104960.0,104950.0,0.00319804]
[1762841359494,0.54447932,104960.0,104950.0,0.00319804]
[1762841359787,0.44917102,104960.0,104950.0,0.00319804]
[1762841361595,0.44917102,104960.0,104950.0,0.12319804]
[1762841361792,0.34273267,104960.0,104950.0,0.39386534]
[1762841361988,0.57017419,104960.0,104930.0,0.01243889]
[1762841362196,0.0953264,104940.0,104930.0,0.00219803]
[1762841362391,0.32073267,104940.0,104930.0,0.00219803]
[1762841362590,0.32073267,104940.0,104920.0,0.0493172]
[1762841362787,0.32073267,104940.0,104920.0,0.05151523]
[1762841362988,0.32073267,104940.0,104920.0,0.18151523]
[1762841363192,7.238e-05,104930.0,104920.0,0.32381523]
[1762841363395,7.238e-05,104930.0,104920.0,0.07381523]
[1762841363396,0.32080505,104930.0,104920.0,0.07381523]
[1762841363893,0.32080505,104930.0,104920.0,0.36381523]
[1762841364305,0.4272434,104930.0,104920.0,0.36381523]
[1762841364690,0.32180505,104930.0,104920.0,0.46115983]
[1762841364897,0.32180505,104930.0,104920.0,0.36581523]
[1762841365693,0.32180505,104930.0,104920.0,0.46115983]
[1762841365899,0.32180505,104930.0,104920.0,0.07581523]
[1762841366207,0.32180505,104930.0,104920.0,0.34581523]
[1762841367093,0.24180505,104930.0,104920.0,0.58339115]
[1762841367298,0.00180505,104930.0,104920.0,0.6898295]
[1762841367596,0.1734016,104980.0,104960.0,0.01399]
[1762841367801,0.10717102,104970.0,104960.0,0.01618803]
[1762841367994,0.47717102,104970.0,104960.0,0.01618803]
[1762841369094,0.58560937,104970.0,104950.0,0.00014245]
[1762841369287,0.10643835,104960.0,104950.0,0.00234048]
[1762841369492,0.42717102,104960.0,104950.0,0.00014245]
[1762841370095,0.52247932,104960.0,104950.0,0.00014245]
[1762841370400,0.62891767,104960.0,104950.0,0.00014245]
[1762841370604,0.62991767,104960.0,104950.0,0.00014245]
[1762841370801,0.63191767,104960.0,104950.0,0.00014245]
[1762841370996,0.57545223,104960.0,104950.0,0.00014245]
[1762841371198,0.32373267,104960.0,104950.0,0.04769048]
[1762841371397,0.32373267,104960.0,104950.0,0.42300788]
[1762841371793,0.48014393,104960.0,104950.0,0.32769048]
[1762841371995,0.48014393,104960.0,104950.0,0.28234048]
[1762841372197,0.48014393,104960.0,104950.0,0.00234048]
[1762841374303,0.48014393,104960.0,104950.0,0.34769048]
[1762841374507,0.32373267,104960.0,104950.0,0.44300788]
[1762841374707,0.32373267,104960.0,104950.0,0.34769048]
[1762841375805,0.32373267,104960.0,104950.0,0.17769048]
[1762841376004,0.32373267,104960.0,104950.0,0.30769048]
[1762841378804,0.57545223,104960.0,104950.0,0.00234048]
[1762841379002,0.57545223,104960.0,104950.0,0.04769048]
[1762841379596,0.17837933,104960.0,104950.0,0.19056951]
[1762841379798,0.04239488,104980.0,104970.0,0.1406492]
[1762841380102,0.04392,105000.0,104990.0,0.04535]
[1762841380305,0.14,105000.0,104990.0,0.46282903]
[1762841380600,0.14,105000.0,104990.0,0.60556909]
[1762841380805,0.04392,105010.0,105000.0,0.1406214]
[1762841381014,0.05666,105020.0,105010.0,0.04535]
[1762841381198,0.36680245,105020.0,105010.0,0.37754803]
[1762841381504,0.12014245,105020.0,105010.0,0.61574224]
[1762841381699,0.31014245,105020.0,105010.0,0.61574224]
[1762841381901,0.08014245,105020.0,105010.0,0.85382224]
[1762841382104,0.36014245,105020.0,105010.0,0.6768906]
[1762841382306,0.36014245,105020.0,105010.0,0.9149706]
[1762841382698,0.36014245,105020.0,105010.0,0.7721535]
[1762841382903,0.36114245,105020.0,105010.0,1.0132335]
[1762841383405,0.36514245,105020.0,105010.0,1.0132335]
[1762841383607,0.36514245,105020.0,105010.0,1.0122335]
[1762841383806,0.36114245,105020.0,105010.0,1.0122335]
[1762841384007,0.36114245,105020.0,105010.0,1.0132335]
[1762841384207,0.36114245,105020.0,105010.0,0.52347934]
[1762841384406,0.36114245,105020.0,105010.0,0.6798906]
[1762841384606,0.66946751,105020.0,105010.0,0.003]
[1762841385911,0.151932,105000.0,104990.0,0.00014245]
[1762841386113,0.451932,105000.0,104990.0,0.00234048]
[1762841387008,0.451932,105000.0,104990.0,0.00534048]
[1762841387206,0.04392,104970.0,104960.0,7.625e-05]
[1762841387409,0.1392192,104970.0,104960.0,0.12510165]
[1762841387614,0.05392,104970.0,104960.0,0.42969082]
[1762841387806,0.04392,104970.0,104960.0,0.18969082]
[1762841388011,0.4692192,104970.0,104960.0,0.18969082]
[1762841389106,0.4692192,104970.0,104960.0,0.27969082]
[1762841389304,0.37392,104970.0,104960.0,0.27969082]
[1762841389505,0.37392,104970.0,104960.0,0.18969082]
[1762841389702,0.04492,104970.0,104960.0,0.64610208]
[1762841389908,0.39492,104970.0,104960.0,0.64910208]
[1762841390517,0.39492,104970.0,104960.0,0.34910208]
[1762841390711,0.39492,104970.0,104960.0,0.32269082]
[1762841391411,0.4902192,104970.0,104960.0,0.14734082]
[1762841391610,0.4902192,104970.0,104960.0,0.00527428]
[1762841392719,0.4912192,104970.0,104960.0,0.00527428]
[1762841392920,0.4932192,104970.0,104960.0,0.00227428]
[1762841395314,0.39792,104970.0,104960.0,0.04715428]
[1762841395514,0.39792,104970.0,104960.0,0.18715428]
[1762841395911,0.39792,104970.0,104960.0,0.64180384]
[1762841396110,0.144,104970.0,104960.0,0.78396582]
[1762841396317,0.144,104970.0,104960.0,0.68865752]
[1762841396517,0.144,104970.0,104960.0,0.727541]
[1762841396716,0.144,104970.0,104960.0,0.8228493]
[1762841397722,0.144,104970.0,104960.0,0.727541]
[1762841397914,0.144,104970.0,104960.0,0.53224626]
[1762841398114,0.144,104970.0,104960.0,0.727541]
[1762841398320,0.314,104970.0,104960.0,0.8228493]
[1762841399618,0.314,104970.0,104960.0,1.0610093]
[1762841399820,0.05909,105020.0,105010.0,0.047]
[1762841400124,0.39909,105020.0,105010.0,0.04919803]
[1762841400317,0.39909,105020.0,105010.0,0.29919803]
[1762841400921,0.40309,105020.0,105010.0,0.30019803]
[1762841401421,0.4037,105020.0,105010.0,0.30019803]
[1762841401621,0.69424824,105020.0,105010.0,0.00319803]
[1762841401823,0.69424824,105020.0,105000.0,0.00014245]
[1762841401824,0.1416126,105010.0,105000.0,0.00014245]
[1762841402022,0.4716126,105010.0,105000.0,0.00014245]
[1762841402422,0.66690734,105010.0,105000.0,0.00014245]
[1762841402623,0.4716126,105010.0,105000.0,0.00014245]
[1762841403021,0.4736126,105010.0,105000.0,0.00014245]
[1762841403428,0.37835,105010.0,105000.0,0.00014245]
[1762841403629,0.37835,105010.0,105000.0,0.04934048]
[1762841404026,0.38035,105010.0,105000.0,0.16034048]
[1762841404329,0.38035,105010.0,105000.0,0.52563522]
[1762841404822,0.37835,105010.0,105000.0,0.52463522]
[1762841405016,0.38235,105010.0,105000.0,0.62090682]
[1762841405217,0.02973,105010.0,105000.0,0.62090682]
[1762841405423,0.036,105010.0,105000.0,0.34381048]
[1762841405725,0.033,105010.0,105000.0,0.53910522]
[1762841406226,0.031,105010.0,105000.0,0.53910522]
[1762841406428,0.032,105010.0,105000.0,0.63437682]
[1762841406929,0.032,105010.0,105000.0,0.77651657]
[1762841407124,0.05621245,105030.0,105020.0,0.047]
[1762841407420,0.41883245,105030.0,105020.0,0.52449277]
[1762841407623,0.39621245,105030.0,105020.0,0.32919803]
[1762841407820,0.39621245,105030.0,105020.0,0.15919803]
[1762841408222,0.39621245,105030.0,105020.0,0.54449277]
[1762841408422,0.39821245,105030.0,105020.0,0.54549277]
[1762841408826,0.42383245,105030.0,105020.0,0.35019803]
[1762841409031,0.42383245,105030.0,105020.0,0.17019803]
[1762841409228,0.22383245,105030.0,105020.0,0.17019803]
[1762841409427,0.40383245,105030.0,105020.0,0.17019803]
[1762841410324,0.49907695,105030.0,105020.0,0.00319803]
[1762841410656,0.49907695,105030.0,105020.0,0.001]
[1762841414235,0.49907695,105030.0,105020.0,0.00319803]
[1762841415727,0.69437169,105030.0,105020.0,0.001]
[1762841416432,0.49907695,105030.0,105020.0,0.00319803]
[1762841418937,0.40383245,105030.0,105020.0,0.00319803]
[1762841419528,0.40383245,105030.0,105020.0,0.04924803]